[Event "43. Zurich Weihnachtsopen 2019"]
[Site "Zurich/SUI"]
[Date "2019.12.30"]
[Round "7.1"]
[White "Kunin, Vitaly"]
[Black "Martirosyan, Haik M."]
[Result "1/2-1/2"]
[ECO "E15"]
[WhiteElo "2538"]
[BlackElo "2613"]
[Annotator "ChessBase"]
[PlyCount "80"]
[EventDate "2019.12.26"]
[EventType "swiss"]
[SourceTitle "playchess.com"]
[Source "ChessBase"]
[SourceQuality "1"]
[TimeControl "40/5400+30:1800+30"]

1. d4 {[%emt 0:00:00]} Nf6 {[%emt 0:00:00]} 2. c4 {[%emt 0:00:13]} e6 {[%emt 0:00:00]} 3. Nf3 {[%emt 0:00:21]} b6 {[%emt 0:00:32]} 4. g3 {[%emt 0:00:38]} Ba6 {[%emt 0:00:27]} 5. Qa4 {[%emt 0:00:25]} c5 {[%emt 0:01:12]} 6. Bg2 {[%emt 0:00:23]} Bb7 {[%emt 0:00:07]} 7. O-O {[%emt 0:00:43]} cxd4 {[%emt 0:01:02]} 8. Nxd4 {[%emt 0:00:11]} Bxg2 {[%emt 0:00:09]} 9. Kxg2 {[%emt 0:00:10]} Qc8 {[%emt 0:00:32]} 10. Rd1 {[%emt 0:00:15]} Qb7+ {[%emt 0:07:29]} 11. f3 {[%emt 0:00:36]} Be7 {[%emt 0:01:16]} 12. Nc3 {[%emt 0:05:14]} O-O {[%emt 0:01:14]} 13. Bg5 {[%emt 0:05:36]} h6 {[%emt 0:03:17]} 14. Bxf6 {[%emt 0:00:20]} Bxf6 {[%emt 0:00:45]} 15. Ne4 {[%emt 0:08:25]} Be5 {[%emt 0:10:09]} 16. Qa3 {[%emt 0:03:35]} a6 {[%emt 0:13:03]} 17. Rac1 {[%emt 0:05:24]} f5 {[%emt 0:03:11]} 18. Nf2 {[%emt 0:08:01]} Bf6 {[%emt 0:06:49]} 19. Qd3 {[%emt 0:04:18]} Rf7 {[%emt 0:02:15]} 20. b3 {[%emt 0:05:36]} Nc6 {[%emt 0:06:05]} 21. Nxc6 {[%emt 0:00:36]} dxc6 {[%emt 0:00:37]} 22. c5 {[%emt 0:07:07]} b5 {[%emt 0:00:47]} 23. Qc2 {[%emt 0:07:54]} e5 {[%emt 0:06:22]} 24. Rd6 {[%emt 0:06:45]} Re8 {[%emt 0:09:49]} 25. Rcd1 {[%emt 0:00:55]} e4 {[%emt 0:01:43]} 26. fxe4 {[%emt 0:01:24]} fxe4 {[%emt 0:00:33]} 27. Nxe4 {[%emt 0:01:34]} Qe7 {[%emt 0:01:03]} 28. Nxf6+ {[%emt 0:04:04]} Rxf6 {[%emt 0:00:06]} 29. Rxf6 {[%emt 0:00:31]} Qxf6 {[%emt 0:00:04]} 30. e4 {[%emt 0:08:00]} Qg5 {[%emt 0:00:22]} 31. b4 {[%emt 0:01:26]} Qe3 {[%emt 0:01:15]} 32. Qb3+ {[%emt 0:00:38]} Qxb3 {[%emt 0:00:06]} 33. axb3 {[%emt 0:00:05]} Rxe4 {[%emt 0:00:06]} 34. Ra1 {[%emt 0:00:08]} Rxb4 {[%emt 0:00:12]} 35. Rxa6 {[%emt 0:00:08]} Rxb3 {[%emt 0:00:03]} 36. Rxc6 {[%emt 0:00:07]} Rc3 {[%emt 0:00:05]} 37. Rc7 {[%emt 0:00:18]} b4 {[%emt 0:00:35]} 38. Rb7 {[%emt 0:00:14]} b3 {[%emt 0:00:19]} 39. c6 {[%emt 0:00:11]} Kh7 {[%emt 0:00:08]} 40. c7 {[%emt 0:00:20]} b2 {[%emt 0:00:06]} 1/2-1/2

[Event "43. Zurich Weihnachtsopen 2019"]
[Site "Zurich/SUI"]
[Date "2019.12.30"]
[Round "7.2"]
[White "Janoszka, Arnd"]
[Black "Lagarde, Maxime"]
[Result "0-1"]
[ECO "A20"]
[WhiteElo "2353"]
[BlackElo "2655"]
[Annotator "ChessBase"]
[PlyCount "57"]
[EventDate "2019.12.26"]
[EventType "swiss"]
[SourceTitle "playchess.com"]
[Source "ChessBase"]
[SourceQuality "1"]
[TimeControl "40/5400+30:1800+30"]

1. c4 {[%emt 0:00:00]} e5 {[%emt 0:01:33]} 2. g3 {[%emt 0:00:21]} c6 {[%emt 0:00:02]} 3. d4 {[%emt 0:03:32]} e4 {[%emt 0:00:05]} 4. a3 {[%emt 0:02:22]} d5 {[%emt 0:02:26]} 5. Bg2 {[%emt 0:02:33]} h6 {[%emt 0:02:07]} 6. Nc3 {[%emt 0:03:25]} Nf6 {[%emt 0:00:32]} 7. f3 {[%emt 0:11:18]} exf3 {[%emt 0:16:59]} 8. Nxf3 {[%emt 0:00:33]} dxc4 {[%emt 0:04:36]} 9. O-O {[%emt 0:05:53]} Nbd7 {[%emt 0:02:34]} 10. e4 {[%emt 0:05:02]} Nb6 {[%emt 0:00:04]} 11. Ne5 {[%emt 0:04:50]} Be6 {[%emt 0:05:43]} 12. Be3 {[%emt 0:14:06]} Bd6 {[%emt 0:04:21]} 13. Nf3 {[%emt 0:15:17]} Bc7 {[%emt 0:04:49]} 14. Kh1 {[%emt 0:00:31]} Qe7 {[%emt 0:03:36]} 15. Qc2 {[%emt 0:02:55]} O-O {[%emt 0:05:36]} 16. Rae1 {[%emt 0:01:11]} Rae8 {[%emt 0:04:11]} 17. d5 {[%emt 0:05:02]} cxd5 {[%emt 0:09:37]} 18. Bxb6 {[%emt 0:07:12]} dxe4 {[%emt 0:00:15]} 19. Bxa7 {[%emt 0:02:07]} exf3 {[%emt 0:00:10]} 20. Bxf3 {[%emt 0:00:07]} Rd8 {[%emt 0:05:59]} 21. Nb5 {[%emt 0:01:20]} Ba5 {[%emt 0:01:46]} 22. Re5 {[%emt 0:03:37]} b6 {[%emt 0:01:36]} 23. Qf2 {[%emt 0:01:06]} Rd2 {[%emt 0:01:41]} 24. Re2 {[%emt 0:00:17]} Rfd8 {[%emt 0:01:50]} 25. Rfe1 {[%emt 0:01:07]} Rxe2 {[%emt 0:03:07]} 26. Rxe2 {[%emt 0:00:17]} Rd3 {[%emt 0:01:14]} 27. a4 {[%emt 0:03:14]} Qd7 {[%emt 0:00:22]} 28. Rc2 {[%emt 0:01:23]} Rxf3 {[%emt 0:00:13]} 29. Rc3 {[%emt 0:00:09]} 0-1

[Event "43. Zurich Weihnachtsopen 2019"]
[Site "Zurich/SUI"]
[Date "2019.12.30"]
[Round "7.3"]
[White "Unuk, Laura"]
[Black "Svane, Rasmus"]
[Result "0-1"]
[ECO "D37"]
[WhiteElo "2305"]
[BlackElo "2597"]
[Annotator "ChessBase"]
[PlyCount "134"]
[EventDate "2019.12.26"]
[EventType "swiss"]
[SourceTitle "playchess.com"]
[Source "ChessBase"]
[SourceQuality "1"]
[TimeControl "40/5400+30:1800+30"]

1. d4 {[%emt 0:04:02]} e6 {[%emt 0:00:00]} 2. c4 {[%emt 0:01:03]} Nf6 {[%emt 0:00:13]} 3. Nf3 {[%emt 0:00:36]} a6 {[%emt 0:00:41]} 4. Nc3 {[%emt 0:03:02]} d5 {[%emt 0:00:23]} 5. cxd5 {[%emt 0:00:11]} exd5 {[%emt 0:00:05]} 6. Bg5 {[%emt 0:00:03]} Be6 {[%emt 0:00:09]} 7. e3 {[%emt 0:01:20]} Nbd7 {[%emt 0:00:06]} 8. Bd3 {[%emt 0:02:03]} Bd6 {[%emt 0:00:04]} 9. O-O {[%emt 0:00:06]} c6 {[%emt 0:00:07]} 10. Bf4 {[%emt 0:02:00]} Qc7 {[%emt 0:00:05]} 11. Bxd6 {[%emt 0:01:49]} Qxd6 {[%emt 0:00:02]} 12. h3 {[%emt 0:02:38]} O-O {[%emt 0:00:06]} 13. Qc2 {[%emt 0:04:14]} g6 {[%emt 0:00:05]} 14. Rac1 {[%emt 0:05:25]} Qe7 {[%emt 0:00:49]} 15. Na4 {[%emt 0:02:24]} Ne8 {[%emt 0:02:41]} 16. Nc5 {[%emt 0:13:37]} Nxc5 {[%emt 0:08:29]} 17. Qxc5 {[%emt 0:03:10]} Nd6 {[%emt 0:01:05]} 18. a4 {[%emt 0:06:01]} Rfd8 {[%emt 0:15:20]} 19. Ne5 {[%emt 0:07:19]} Kg7 {[%emt 0:05:33]} 20. Rfe1 {[%emt 0:08:03]} Qg5 {[%emt 0:01:13]} 21. Kh2 {[%emt 0:04:18]} Rac8 {[%emt 0:03:50]} 22. Qb6 {[%emt 0:01:17]} Bf5 {[%emt 0:03:42]} 23. b4 {[%emt 0:15:13]} Bxd3 {[%emt 0:02:33]} 24. Nxd3 {[%emt 0:00:05]} Rd7 {[%emt 0:01:03]} 25. Ne5 {[%emt 0:02:34]} Re7 {[%emt 0:01:09]} 26. Qc5 {[%emt 0:01:24]} Qf6 {[%emt 0:03:48]} 27. Kg1 {[%emt 0:02:56]} Rce8 {[%emt 0:00:31]} 28. Ng4 {[%emt 0:01:17]} Qe6 {[%emt 0:00:15]} 29. Ne5 {[%emt 0:00:47]} h5 {[%emt 0:06:31]} 30. Qc2 {[%emt 0:00:16]} Qf6 {[%emt 0:00:50]} 31. Qb2 {[%emt 0:02:31]} Kg8 {[%emt 0:14:17]} 32. Qe2 {[%emt 0:00:21]} Qg5 {[%emt 0:00:32]} 33. Qc2 {[%emt 0:00:53]} Re6 {[%emt 0:01:32]} 34. Nf3 {[%emt 0:00:12]} Qf6 {[%emt 0:01:08]} 35. Ne5 {[%emt 0:00:20]} Qg7 {[%emt 0:04:54]} 36. Re2 {[%emt 0:00:49]} g5 {[%emt 0:01:14]} 37. Ree1 {[%emt 0:02:09]} g4 {[%emt 0:01:43]} 38. hxg4 {[%emt 0:01:47]} hxg4 {[%emt 0:00:01]} 39. g3 {[%emt 0:00:24]} Ne4 {[%emt 0:07:35]} 40. Kg2 {[%emt 0:00:28]} Rf6 {[%emt 0:00:26]} 41. Nd3 {[%emt 0:03:19]} Rf3 {[%emt 0:01:35]} 42. Re2 {[%emt 0:02:08]} Re6 {[%emt 0:00:29]} 43. Rh1 {[%emt 0:05:22]} Rh6 {[%emt 0:02:48]} 44. Qc1 {[%emt 0:07:20]} Rff6 {[%emt 0:12:44]} 45. Ree1 {[%emt 0:00:42]} Qh7 {[%emt 0:04:40]} 46. Nf4 {[%emt 0:04:15]} Nd2 {[%emt 0:09:07]} 47. e4 {[%emt 0:05:02]} Rxh1 {[%emt 0:00:17]} 48. Rxh1 {[%emt 0:00:36]} Qxe4+ {[%emt 0:00:04]} 49. Kg1 {[%emt 0:00:28]} Nf3+ {[%emt 0:00:05]} 50. Kf1 {[%emt 0:00:52]} Nd2+ {[%emt 0:03:27]} 51. Kg1 {[%emt 0:00:36]} Nf3+ {[%emt 0:00:40]} 52. Kf1 {[%emt 0:00:19]} Nxd4 {[%emt 0:01:06]} 53. Rh4 {[%emt 0:01:06]} Nf3 {[%emt 0:01:36]} 54. Rh5 {[%emt 0:04:52]} Rf5 {[%emt 0:03:29]} 55. Rh6 {[%emt 0:00:03]} Re5 {[%emt 0:01:09]} 56. Rh1 {[%emt 0:01:14]} d4 {[%emt 0:02:05]} 57. b5 {[%emt 0:00:35]} axb5 {[%emt 0:00:32]} 58. axb5 {[%emt 0:00:17]} Rxb5 {[%emt 0:02:51]} 59. Nh5 {[%emt 0:00:35]} Nd2+ {[%emt 0:02:30]} 60. Kg1 {[%emt 0:00:09]} Qxh1+ {[%emt 0:00:28]} 61. Kxh1 {[%emt 0:00:06]} Rb1 {[%emt 0:00:12]} 62. Nf6+ {[%emt 0:00:21]} Kg7 {[%emt 0:00:09]} 63. Qxb1 {[%emt 0:00:35]} Nxb1 {[%emt 0:00:05]} 64. Nxg4 {[%emt 0:00:23]} d3 {[%emt 0:00:17]} 65. Ne3 {[%emt 0:00:18]} d2 {[%emt 0:00:14]} 66. Nd1 {[%emt 0:00:10]} c5 {[%emt 0:00:04]} 67. Kg2 {[%emt 0:00:54]} c4 {[%emt 0:00:04]} 0-1

[Event "43. Zurich Weihnachtsopen 2019"]
[Site "Zurich/SUI"]
[Date "2019.12.30"]
[Round "7.5"]
[White "Pikula, Dejan"]
[Black "Zhang, Xiaopeng"]
[Result "1/2-1/2"]
[ECO "B51"]
[WhiteElo "2444"]
[BlackElo "2339"]
[Annotator "NA"]
[PlyCount "104"]
[EventDate "2019.12.26"]
[EventType "swiss"]
[SourceTitle "playchess.com"]
[Source "ChessBase"]
[SourceQuality "1"]
[TimeControl "40/5400+30:1800+30"]

1. e4 {[%emt 0:00:00]} c5 {[%emt 0:00:00]} 2. Nf3 {[%emt 0:00:00]} d6 {[%emt 0:00:00]} 3. Bb5+ {[%emt 0:01:28]} Nd7 {[%emt 0:01:21]} 4. O-O {[%emt 0:00:13]} Ngf6 {[%emt 0:00:34]} 5. Re1 {[%emt 0:00:20]} a6 {[%emt 0:00:28]} 6. Bd3 {[%emt 0:01:54] B51: Sicilian: Moscow Variation (3 Bb5+) without 3...Bd7} g6 {[%emt 0:00:34]} 7. c3 {[%emt 0:00:11]} Bg7 {[%emt 0:00:46]} 8. Bc2 {[%emt 0:00:45]} O-O {[%emt 0:00:34]} 9. d4 {[%emt 0:00:12]} e5 {[%emt 0:04:38]} 10. dxe5 {[%emt 0:04:59]} (10. a4 Rb8 11. dxe5 Nxe5 12. Nxe5 dxe5 13. Qxd8 Rxd8 {½-½ (65) Amin,B (2707)-Artemiev,V (2761) Danzhou 2019}) 10... Nxe5 {[%emt 0:02:17]} 11. Nxe5 {[%emt 0:07:22]} dxe5 {[%emt 0:00:06]} 12. Be3 $146 {[%emt 0:00:17]} ({Predecessor:} 12. Qxd8 Rxd8 {½-½ (29) Skawinski,A (2392)-Sivuk,V (2523) Wroclaw 2019}) 12... Qc7 {[%emt 0:02:02]} 13. a4 {[%emt 0:02:45]} Be6 {[%emt 0:02:53]} 14. a5 {[%emt 0:04:08]} Ng4 {[%emt 0:00:36]} 15. Bc1 {[%emt 0:00:16]} b5 {[%emt 0:07:47]} 16. axb6 {[%emt 0:01:11]} Qxb6 {[%emt 0:00:04]} 17. h3 {[%emt 0:03:12]} Nf6 {[%emt 0:01:06]} 18. Qe2 {[%emt 0:01:58]} c4 {[%emt 0:04:18]} 19. Nd2 {[%emt 0:00:34]} Rfc8 {[%emt 0:01:00]} 20. Nf3 {[%emt 0:02:18]} Nh5 {[%emt 0:06:07]} 21. Ra2 {[%emt 0:01:08]} h6 {[%emt 0:04:31]} 22. Be3 {[%emt 0:04:51]} Qb7 {[%emt 0:06:03]} 23. Kh2 {[%emt 0:06:18]} Nf6 {[%emt 0:03:23]} (23... a5 $11 {remains equal.}) 24. Qd2 {[%emt 0:11:02]} Kh7 {[%emt 0:04:11]} 25. Ra5 {[%emt 0:02:01]} Rd8 {[%emt 0:03:50]} 26. Qc1 {[%emt 0:00:11]} Rab8 {[%emt 0:00:09]} 27. Ra2 {[%emt 0:07:05]} Nd7 {[%emt 0:04:53]} 28. Rd1 {[%emt 0:00:38]} Nf6 {[%emt 0:00:35]} 29. Rxd8 {[%emt 0:01:52]} Rxd8 {[%emt 0:00:05]} 30. Nd2 {[%emt 0:00:16]} Nd7 {[%emt 0:01:42]} 31. Ra4 $11 {[%emt 0:03:05]} Qc6 {[%emt 0:07:33]} 32. Qa1 {[%emt 0:01:42]} Ra8 {[%emt 0:06:05]} 33. Ra5 {[%emt 0:00:18]} Qb7 {[%emt 0:02:11]} 34. Ra4 {[%emt 0:05:47]} Qc6 {[%emt 0:00:29]} 35. Bd1 {[%emt 0:04:41]} Nc5 {[%emt 0:08:30]} 36. Ra5 {[%emt 0:00:07]} Nb7 {[%emt 0:00:09]} 37. Ra2 {[%emt 0:00:33]} Bf8 {[%emt 0:01:52]} 38. Be2 {[%emt 0:00:44]} Bc5 {[%emt 0:03:35]} 39. Bxc5 {[%emt 0:02:15]} Nxc5 {[%emt 0:01:18]} 40. Kg1 {[%emt 0:00:46]} Rd8 {[%emt 0:02:53]} 41. Qe1 {[%emt 0:33:16]} Qd7 {[%emt 0:38:10]} 42. Nf3 {[%emt 0:07:48]} Nd3 {[%emt 0:00:00]} 43. Qa1 {[%emt 0:00:00]} Qb7 {[%emt 0:00:00]} 44. Rxa6 {[%emt 0:00:00]} Nc1 {[%emt 0:00:00]} 45. Qxc1 {[%emt 0:00:00]} Qxa6 {[%emt 0:00:00]} 46. Nxe5 {[%emt 0:00:00]} Qa2 {[%emt 0:00:00]} 47. Qf4 {[%emt 0:00:00]} Kg7 {[%emt 0:00:00]} 48. Bg4 {[%emt 0:00:00]} Qa6 {[%emt 0:00:00]} 49. Bxe6 {[%emt 0:00:00]} Qxe6 {[%emt 0:00:00]} 50. Ng4 {[%emt 0:00:00]} h5 {[%emt 0:00:00]} 51. Ne3 {[%emt 0:00:00]} Re8 {[%emt 0:00:00]} 52. e5 {[%emt 0:00:00]} Qxe5 {[%emt 0:00:00]} 1/2-1/2

[Event "43. Zurich Weihnachtsopen 2019"]
[Site "Zurich/SUI"]
[Date "2019.12.30"]
[Round "7.6"]
[White "Wagner, Dennis"]
[Black "Huss, Andreas"]
[Result "1-0"]
[ECO "A13"]
[WhiteElo "2578"]
[BlackElo "2256"]
[Annotator "ChessBase"]
[PlyCount "71"]
[EventDate "2019.12.26"]
[EventType "swiss"]
[SourceTitle "playchess.com"]
[Source "ChessBase"]
[SourceQuality "1"]
[TimeControl "40/5400+30:1800+30"]

1. c4 {[%emt 0:00:00]} e6 {[%emt 0:00:00]} 2. Nc3 {[%emt 0:00:00]} Bb4 {[%emt 0:00:00]} 3. Qb3 {[%emt 0:00:00]} Nc6 {[%emt 0:01:16]} 4. e3 {[%emt 0:00:11]} Nf6 {[%emt 0:00:50]} 5. a3 {[%emt 0:00:18]} Bxc3 {[%emt 0:02:23]} 6. Qxc3 {[%emt 0:00:07]} e5 {[%emt 0:04:01]} 7. b4 {[%emt 0:01:04]} d5 {[%emt 0:00:46]} 8. cxd5 {[%emt 0:03:12]} Nxd5 {[%emt 0:00:35]} 9. Qc2 {[%emt 0:00:30]} O-O {[%emt 0:02:03]} 10. Bb2 {[%emt 0:00:07]} Qd6 {[%emt 0:04:13]} 11. Nf3 {[%emt 0:04:03]} Re8 {[%emt 0:06:13]} 12. d3 {[%emt 0:40:10]} f6 {[%emt 0:04:01]} 13. Be2 {[%emt 0:00:29]} Be6 {[%emt 0:00:51]} 14. O-O {[%emt 0:00:45]} Bf7 {[%emt 0:04:01]} 15. Nd2 {[%emt 0:01:27]} Qd7 {[%emt 0:11:31]} 16. Ne4 {[%emt 0:03:54]} b6 {[%emt 0:02:50]} 17. Rac1 {[%emt 0:03:41]} Nce7 {[%emt 0:00:53]} 18. d4 {[%emt 0:05:58]} exd4 {[%emt 0:04:18]} 19. Bxd4 {[%emt 0:00:03]} Nf5 {[%emt 0:05:19]} 20. Bb2 {[%emt 0:04:11]} Nfxe3 {[%emt 0:05:46]} 21. fxe3 {[%emt 0:00:16]} Nxe3 {[%emt 0:00:06]} 22. Nxf6+ {[%emt 0:02:22]} gxf6 {[%emt 0:01:01]} 23. Qc3 {[%emt 0:00:03]} Qd5 {[%emt 0:17:37]} 24. Rf3 {[%emt 0:07:45]} Ng4 {[%emt 0:09:55]} 25. Rg3 {[%emt 0:02:56]} Rxe2 {[%emt 0:02:31]} 26. Rxg4+ {[%emt 0:00:04]} Kf8 {[%emt 0:01:00]} 27. Qxf6 {[%emt 0:01:19]} Ke8 {[%emt 0:02:55]} 28. h3 {[%emt 0:08:08]} c5 {[%emt 0:03:00]} 29. bxc5 {[%emt 0:01:35]} bxc5 {[%emt 0:00:25]} 30. Rf1 {[%emt 0:04:45]} Rd8 {[%emt 0:01:02]} 31. Rg5 {[%emt 0:02:11]} Qe6 {[%emt 0:00:51]} 32. Qh8+ {[%emt 0:00:43]} Kd7 {[%emt 0:00:40]} 33. Rd1+ {[%emt 0:00:08]} Kc6 {[%emt 0:00:12]} 34. Qxd8 {[%emt 0:00:53]} Rxb2 {[%emt 0:03:02]} 35. Rxc5+ {[%emt 0:00:50]} Kxc5 {[%emt 0:00:16]} 36. Qd4+ {[%emt 0:00:09] Kd5} 1-0

[Event "43. Zurich Weihnachtsopen 2019"]
[Site "Zurich/SUI"]
[Date "2019.12.30"]
[Round "7.7"]
[White "Colmenares, Aurelio"]
[Black "Henderson de La Fuente, Lance"]
[Result "0-1"]
[ECO "B48"]
[WhiteElo "2305"]
[BlackElo "2492"]
[Annotator "ChessBase"]
[PlyCount "66"]
[EventDate "2019.12.26"]
[EventType "swiss"]
[SourceTitle "playchess.com"]
[Source "ChessBase"]
[SourceQuality "1"]
[TimeControl "40/5400+30:1800+30"]

1. e4 {[%emt 0:00:00]} c5 {[%emt 0:00:00]} 2. Nf3 {[%emt 0:00:00]} e6 {[%emt 0:00:00]} 3. d4 {[%emt 0:00:00]} cxd4 {[%emt 0:00:04]} 4. Nxd4 {[%emt 0:00:00]} Nc6 {[%emt 0:00:08]} 5. Nc3 {[%emt 0:00:00]} Qc7 {[%emt 0:00:06]} 6. Be3 {[%emt 0:00:11]} a6 {[%emt 0:00:06]} 7. Qd2 {[%emt 0:00:26]} Nf6 {[%emt 0:00:08]} 8. O-O-O {[%emt 0:00:26]} Be7 {[%emt 0:00:23]} 9. f3 {[%emt 0:00:22]} b5 {[%emt 0:00:16]} 10. Nxc6 {[%emt 0:00:15]} dxc6 {[%emt 0:06:43]} 11. g4 {[%emt 0:00:33]} e5 {[%emt 0:00:07]} 12. h4 {[%emt 0:00:18]} Be6 {[%emt 0:00:17]} 13. Qf2 {[%emt 0:00:05]} Rd8 {[%emt 0:22:01]} 14. Rxd8+ {[%emt 0:27:12]} Qxd8 {[%emt 0:00:14]} 15. Bh3 {[%emt 0:00:36]} Nd7 {[%emt 0:00:57]} 16. g5 {[%emt 0:00:28]} Bxh3 {[%emt 0:01:02]} 17. Rxh3 {[%emt 0:00:05]} Nf8 {[%emt 0:05:34]} 18. f4 {[%emt 0:15:20]} exf4 {[%emt 0:00:23]} 19. Bxf4 {[%emt 0:00:07]} Ne6 {[%emt 0:00:53]} 20. Rd3 {[%emt 0:00:07]} Qa5 {[%emt 0:01:38]} 21. Bd6 {[%emt 0:10:59]} Bxd6 {[%emt 0:02:27]} 22. Rxd6 {[%emt 0:00:46]} b4 {[%emt 0:00:27]} 23. Qf5 {[%emt 0:11:59]} Qc7 {[%emt 0:12:33]} 24. Qe5 {[%emt 0:02:20]} Qb6 {[%emt 0:02:33]} 25. Nd1 {[%emt 0:07:33]} O-O {[%emt 0:00:29]} 26. Qd5 {[%emt 0:11:12]} Rd8 {[%emt 0:03:46]} 27. Rxd8+ {[%emt 0:01:01]} Nxd8 {[%emt 0:00:12]} 28. Qd2 {[%emt 0:04:41]} Ne6 {[%emt 0:00:19]} 29. Ne3 {[%emt 0:00:30]} g6 {[%emt 0:07:58]} 30. c3 {[%emt 0:02:56]} Qc5 {[%emt 0:01:11]} 31. Kc2 {[%emt 0:00:50]} Qe5 {[%emt 0:00:19]} 32. Qd3 {[%emt 0:02:59]} Qh2+ {[%emt 0:00:02]} 33. Qd2 {[%emt 0:00:36]} Qxh4 {[%emt 0:00:08]} 0-1

[Event "43. Zurich Weihnachtsopen 2019"]
[Site "Zurich/SUI"]
[Date "2019.12.30"]
[Round "7.8"]
[White "Fecker, Noah"]
[Black "Srinath, Rao S.V."]
[Result "1-0"]
[ECO "C06"]
[WhiteElo "2277"]
[BlackElo "2397"]
[Annotator "NA"]
[PlyCount "49"]
[EventDate "2019.12.26"]
[EventType "swiss"]
[SourceTitle "playchess.com"]
[Source "ChessBase"]
[SourceQuality "1"]
[TimeControl "40/5400+30:1800+30"]

1. e4 {[%emt 0:00:00]} e6 {[%emt 0:02:14]} 2. d4 {[%emt 0:00:00]} d5 {[%emt 0:00:06]} 3. Nd2 {[%emt 0:00:00]} Nf6 {[%emt 0:00:41]} 4. e5 {[%emt 0:00:08]} Nfd7 {[%emt 0:00:06]} 5. Bd3 {[%emt 0:00:07]} c5 {[%emt 0:00:05]} 6. c3 {[%emt 0:00:07]} Nc6 {[%emt 0:00:03]} 7. Ngf3 {[%emt 0:00:28]} g6 {[%emt 0:01:00]} 8. h4 {[%emt 0:01:35]} h6 {[%emt 0:00:06]} 9. O-O {[%emt 0:07:34]} Bg7 {[%emt 0:00:26]} 10. Re1 {[%emt 0:05:21]} a6 {[%emt 0:06:53]} 11. a3 {[%emt 0:05:41]} Qb6 {[%emt 0:05:24]} 12. b4 {[%emt 0:18:13]} cxd4 {[%emt 0:02:59]} 13. cxd4 {[%emt 0:00:35]} Nxd4 {[%emt 0:00:38]} 14. Bb2 {[%emt 0:00:28]} Nxf3+ {[%emt 0:02:48]} 15. Nxf3 {[%emt 0:02:05]} Qd8 {[%emt 0:04:51]} 16. Rc1 {[%emt 0:02:52]} Nb8 {[%emt 0:08:49]} 17. Nd4 {[%emt 0:02:04]} ({Better is} 17. h5 $1 $16) 17... Bd7 {[%emt 0:03:20]} 18. h5 {[%emt 0:06:14]} gxh5 $18 {[%emt 0:06:28]} 19. Nf5 {[%emt 0:09:03]} O-O {[%emt 0:10:59]} 20. Nxg7 {[%emt 0:02:39]} Kxg7 {[%emt 0:00:52]} 21. Qxh5 {[%emt 0:02:26]} Bb5 {[%emt 0:03:37]} 22. Bb1 {[%emt 0:07:19]} Qg5 {[%emt 0:03:29]} 23. Qh3 {[%emt 0:00:41]} d4 {[%emt 0:05:20]} 24. Bxd4 {[%emt 0:01:43]} h5 {[%emt 0:00:42]} 25. Rc3 {[%emt 0:00:47]} 1-0